[Event "Titled Tuesday Blitz May 23 Early 2023"]
[White "Javakhadze, Zurab"]
[Black "Bayo Milagro, Alvaro"]
[WhiteFideId "13603647"]
[BlackFideId "22275240"]
[WhiteElo "2381"]
[BlackElo "2270"]
[Result "1/2-1/2"]
[Round "06"]
[TimeControl "180+2"]
[Date "2023.05.23"]
[WhiteClock "0:00:23"]
[BlackClock "0:01:17"]

1. Nf3 {[%clk 0:03:00]}  d5 {[%clk 0:02:59]} 2. g3 {[%clk 0:03:00]}  c6 {[%clk 0:02:58]} 3. Bg2 {[%clk 0:03:01]}  Bg4 {[%clk 0:02:59]} 4. O-O {[%clk 0:03:01]}  Nd7 {[%clk 0:02:59]} 5. d3 {[%clk 0:03:01]}  e6 {[%clk 0:02:59]} 6. Nbd2 {[%clk 0:03:02]}  Ngf6 {[%clk 0:02:59]} 7. h3 {[%clk 0:03:02]}  Bh5 {[%clk 0:02:56]} 8. e4 {[%clk 0:03:02]}  Bc5 {[%clk 0:02:54]} 9. Qe2 {[%clk 0:02:59]}  O-O {[%clk 0:02:54]} 10. c3 {[%clk 0:02:55]}  dxe4 {[%clk 0:02:51]} 11. dxe4 {[%clk 0:02:50]}  Ne5 {[%clk 0:02:50]} 12. g4 {[%clk 0:02:47]}  Nxf3+ {[%clk 0:02:47]} 13. Bxf3 {[%clk 0:02:20]}  Bg6 {[%clk 0:02:46]} 14. Kg2 {[%clk 0:02:16]}  Nd7 {[%clk 0:02:40]} 15. Nc4 {[%clk 0:02:09]}  b5 {[%clk 0:02:39]} 16. Ne3 {[%clk 0:01:32]}  Ne5 {[%clk 0:02:38]} 17. Rd1 {[%clk 0:01:30]}  Qf6 {[%clk 0:02:37]} 18. Rf1 {[%clk 0:01:19]}  Rad8 {[%clk 0:02:31]} 19. Nc2 {[%clk 0:01:15]}  Rd3 {[%clk 0:02:07]} 20. Be3 {[%clk 0:01:15]}  Bxe3 {[%clk 0:02:06]} 21. Nxe3 {[%clk 0:01:12]}  Rfd8 {[%clk 0:02:04]} 22. Rad1 {[%clk 0:01:06]}  h5 {[%clk 0:01:49]} 23. Rxd3 {[%clk 0:00:41]}  Rxd3 {[%clk 0:01:45]} 24. Rd1 {[%clk 0:00:41]}  hxg4 {[%clk 0:01:43]} 25. hxg4 {[%clk 0:00:41]}  Rxd1 {[%clk 0:01:27]} 26. Qxd1 {[%clk 0:00:41]}  Qf4 {[%clk 0:01:18]} 27. Qd8+ {[%clk 0:00:34]}  Kh7 {[%clk 0:01:17]} 28. Qh4+ {[%clk 0:00:34]}  Kg8 {[%clk 0:01:17]} 29. Qd8+ {[%clk 0:00:34]}  Kh7 {[%clk 0:01:17]} 30. Qh4+ {[%clk 0:00:32]}  Kg8 {[%clk 0:01:17]} 31. Qd8+ {[%clk 0:00:23]} 1/2-1/2


[Site "https://www.chess.com"]

[Event "Titled Tuesday Blitz May 23 Early 2023"]
[White "Vestby-Ellingsen, Mads"]
[Black "Starozhilov, Leonid"]
[WhiteFideId "1520857"]
[BlackFideId "14106752"]
[WhiteElo "2244"]
[BlackElo "2352"]
[Result "0-1"]
[Round "06"]
[TimeControl "180+2"]
[Date "2023.05.23"]
[WhiteClock "0:00:00"]
[BlackClock "0:01:39"]

1. d4 {[%clk 0:03:00]}  Nf6 {[%clk 0:02:58]} 2. c4 {[%clk 0:03:00]}  g6 {[%clk 0:02:57]} 3. h4 {[%clk 0:02:59]}  h5 {[%clk 0:02:57]} 4. Qc2 {[%clk 0:02:52]}  Bg7 {[%clk 0:02:54]} 5. e4 {[%clk 0:02:52]}  Nc6 {[%clk 0:02:53]} 6. Nf3 {[%clk 0:02:52]}  d6 {[%clk 0:02:53]} 7. a3 {[%clk 0:02:46]}  Bg4 {[%clk 0:02:52]} 8. Be3 {[%clk 0:02:46]}  Bxf3 {[%clk 0:02:52]} 9. gxf3 {[%clk 0:02:46]}  e5 {[%clk 0:02:53]} 10. d5 {[%clk 0:02:42]}  Nd4 {[%clk 0:02:52]} 11. Qd1 {[%clk 0:02:41]}  O-O {[%clk 0:02:50]} 12. Nc3 {[%clk 0:02:40]}  c5 {[%clk 0:02:50]} 13. dxc6 {[%clk 0:02:39]}  bxc6 {[%clk 0:02:50]} 14. Bg2 {[%clk 0:02:24]}  a5 {[%clk 0:02:35]} 15. Ne2 {[%clk 0:02:23]}  c5 {[%clk 0:02:28]} 16. Nxd4 {[%clk 0:02:17]}  cxd4 {[%clk 0:02:27]} 17. Bd2 {[%clk 0:02:16]}  a4 {[%clk 0:02:27]} 18. Bf1 {[%clk 0:02:10]}  Nd7 {[%clk 0:02:26]} 19. b4 {[%clk 0:01:52]}  axb3 {[%clk 0:02:25]} 20. Qxb3 {[%clk 0:01:52]}  Nc5 {[%clk 0:02:20]} 21. Qc2 {[%clk 0:01:51]}  Bf6 {[%clk 0:02:20]} 22. a4 {[%clk 0:01:48]}  Bxh4 {[%clk 0:02:14]} 23. a5 {[%clk 0:01:47]}  Bg5 {[%clk 0:02:14]} 24. Bxg5 {[%clk 0:01:04]}  Qxg5 {[%clk 0:02:13]} 25. Bd3 {[%clk 0:01:00]}  Rfb8 {[%clk 0:02:09]} 26. Ke2 {[%clk 0:00:57]}  Rb3 {[%clk 0:02:07]} 27. Rhd1 {[%clk 0:00:56]}  Rc3 {[%clk 0:02:02]} 28. Qb1 {[%clk 0:00:50]}  Qd8 {[%clk 0:02:00]} 29. a6 {[%clk 0:00:29]}  Rxa6 {[%clk 0:01:51]} 30. Rxa6 {[%clk 0:00:28]}  Nxa6 {[%clk 0:01:52]} 31. Rc1 {[%clk 0:00:23]}  Rxc1 {[%clk 0:01:50]} 32. Qxc1 {[%clk 0:00:24]}  Nc5 {[%clk 0:01:51]} 33. f4 {[%clk 0:00:14]}  Qf6 {[%clk 0:01:49]} 34. fxe5 {[%clk 0:00:13]}  dxe5 {[%clk 0:01:48]} 35. Bb1 {[%clk 0:00:11]}  h4 {[%clk 0:01:47]} 36. Qh1 {[%clk 0:00:10]}  Qf4 {[%clk 0:01:45]} 37. Qg2 {[%clk 0:00:08]}  Nb3 {[%clk 0:01:39]} 38. Bc2 {[%clk 0:00:01]}  Qd2+ {[%clk 0:01:38]} 39. Kf1 {[%clk 0:00:02]}  Qxc2 {[%clk 0:01:39]} 40. Qg5 {[%clk 0:00:02]}  Qc1+ {[%clk 0:01:39]} 41. Kg2 {[%clk 0:00:00]}  Qxg5+ {[%clk 0:01:39]} 0-1


[Site "https://www.chess.com"]

[Event "Titled Tuesday Blitz May 23 Early 2023"]
[White "Siva Mahadevan"]
[Black "surrenderPLS"]
[WhiteFideId "25043153"]
[WhiteElo "2249"]
[BlackElo "2553"]
[Result "1-0"]
[Round "06"]
[TimeControl "180+2"]
[Date "2023.05.23"]
[WhiteClock "0:01:12"]
[BlackClock "0:00:07"]

1. e4 {[%clk 0:02:58]}  c5 {[%clk 0:02:59]} 2. Nf3 {[%clk 0:02:57]}  d6 {[%clk 0:02:59]} 3. d4 {[%clk 0:02:57]}  cxd4 {[%clk 0:03:00]} 4. Nxd4 {[%clk 0:02:58]}  Nf6 {[%clk 0:03:01]} 5. Nc3 {[%clk 0:02:59]}  e5 {[%clk 0:02:59]} 6. Nde2 {[%clk 0:02:58]}  Be7 {[%clk 0:02:59]} 7. g3 {[%clk 0:02:58]}  O-O {[%clk 0:02:58]} 8. Bg2 {[%clk 0:02:58]}  a6 {[%clk 0:02:56]} 9. a4 {[%clk 0:02:57]}  Be6 {[%clk 0:02:56]} 10. O-O {[%clk 0:02:58]}  Nbd7 {[%clk 0:02:53]} 11. h3 {[%clk 0:02:58]}  h5 {[%clk 0:02:47]} 12. Bg5 {[%clk 0:02:55]}  Nh7 {[%clk 0:02:19]} 13. Bxe7 {[%clk 0:02:49]}  Qxe7 {[%clk 0:02:20]} 14. Qd2 {[%clk 0:02:50]}  Rfd8 {[%clk 0:02:14]} 15. Rad1 {[%clk 0:02:49]}  Nb6 {[%clk 0:02:05]} 16. b3 {[%clk 0:02:49]}  Nf6 {[%clk 0:02:00]} 17. a5 {[%clk 0:02:40]}  Nbd7 {[%clk 0:01:55]} 18. Qxd6 {[%clk 0:02:40]}  Qxd6 {[%clk 0:01:52]} 19. Rxd6 {[%clk 0:02:41]}  Kf8 {[%clk 0:01:52]} 20. Rfd1 {[%clk 0:02:41]}  Ke7 {[%clk 0:01:52]} 21. Na4 {[%clk 0:02:41]}  Rac8 {[%clk 0:01:45]} 22. c4 {[%clk 0:02:41]}  Rc6 {[%clk 0:01:35]} 23. Rxc6 {[%clk 0:02:29]}  bxc6 {[%clk 0:01:35]} 24. f4 {[%clk 0:02:29]}  g6 {[%clk 0:01:08]} 25. fxe5 {[%clk 0:02:07]}  Nxe5 {[%clk 0:01:08]} 26. Rxd8 {[%clk 0:02:08]}  Kxd8 {[%clk 0:01:07]} 27. Nd4 {[%clk 0:02:09]}  Nfd7 {[%clk 0:01:01]} 28. Kf2 {[%clk 0:02:06]}  c5 {[%clk 0:00:56]} 29. Ne2 {[%clk 0:02:00]}  Nc6 {[%clk 0:00:54]} 30. e5 {[%clk 0:01:48]}  Nxa5 {[%clk 0:00:54]} 31. Nc1 {[%clk 0:01:48]}  Kc7 {[%clk 0:00:32]} 32. Ke3 {[%clk 0:01:47]}  Nc6 {[%clk 0:00:31]} 33. Nd3 {[%clk 0:01:41]}  Ncxe5 {[%clk 0:00:24]} 34. Nxe5 {[%clk 0:01:41]}  Nxe5 {[%clk 0:00:24]} 35. Nxc5 {[%clk 0:01:42]}  Bc8 {[%clk 0:00:24]} 36. Kf4 {[%clk 0:01:43]}  f6 {[%clk 0:00:20]} 37. Ne4 {[%clk 0:01:43]}  Nd3+ {[%clk 0:00:16]} 38. Ke3 {[%clk 0:01:43]}  Nc1 {[%clk 0:00:14]} 39. b4 {[%clk 0:01:37]}  Na2 {[%clk 0:00:13]} 40. b5 {[%clk 0:01:34]}  axb5 {[%clk 0:00:13]} 41. cxb5 {[%clk 0:01:35]}  Bb7 {[%clk 0:00:14]} 42. Bf1 {[%clk 0:01:31]}  Bxe4 {[%clk 0:00:09]} 43. Kxe4 {[%clk 0:01:32]}  Kb6 {[%clk 0:00:10]} 44. Kd5 {[%clk 0:01:31]}  Nc3+ {[%clk 0:00:10]} 45. Ke6 {[%clk 0:01:31]}  Ne4 {[%clk 0:00:11]} 46. Bd3 {[%clk 0:01:23]}  f5 {[%clk 0:00:07]} 47. Ke5 {[%clk 0:01:22]}  Nxg3 {[%clk 0:00:07]} 48. Kf4 {[%clk 0:01:22]}  Ne4 {[%clk 0:00:06]} 49. h4 {[%clk 0:01:14]}  Nd2 {[%clk 0:00:05]} 50. Be2 {[%clk 0:01:11]}  Ne4 {[%clk 0:00:04]} 51. Ke5 {[%clk 0:01:11]}  Ng3 {[%clk 0:00:03]} 52. Bd3 {[%clk 0:01:11]}  f4 {[%clk 0:00:04]} 53. Kxf4 {[%clk 0:01:11]}  Nf5 {[%clk 0:00:04]} 54. Bxf5 {[%clk 0:01:08]}  gxf5 {[%clk 0:00:05]} 55. Kxf5 {[%clk 0:01:09]}  Kxb5 {[%clk 0:00:06]} 56. Kg5 {[%clk 0:01:10]}  Kb6 {[%clk 0:00:07]} 57. Kxh5 {[%clk 0:01:10]}  Kc6 {[%clk 0:00:08]} 58. Kg6 {[%clk 0:01:11]}  Kd7 {[%clk 0:00:09]} 59. h5 {[%clk 0:01:12]}  Ke8 {[%clk 0:00:07]} 60. Kg7 {[%clk 0:01:12]} 1-0


[Site "https://www.chess.com"]

[Event "Titled Tuesday Blitz May 23 Early 2023"]
[White "Fier, Alexandr"]
[Black "Tologon tegin, Semetei"]
[WhiteFideId "2107139"]
[BlackFideId "13800574"]
[WhiteElo "2610"]
[BlackElo "2247"]
[Result "1-0"]
[Round "06"]
[TimeControl "180+2"]
[Date "2023.05.23"]
[WhiteClock "0:01:39"]
[BlackClock "0:00:00"]

1. c4 {[%clk 0:03:00]}  e6 {[%clk 0:02:51]} 2. b3 {[%clk 0:03:01]}  d5 {[%clk 0:02:51]} 3. Bb2 {[%clk 0:03:01]}  c5 {[%clk 0:02:51]} 4. Nf3 {[%clk 0:03:01]}  Nc6 {[%clk 0:02:51]} 5. e3 {[%clk 0:03:01]}  Nf6 {[%clk 0:02:49]} 6. Nc3 {[%clk 0:03:01]}  Be7 {[%clk 0:02:47]} 7. cxd5 {[%clk 0:03:00]}  Nxd5 {[%clk 0:02:47]} 8. Qc2 {[%clk 0:02:59]}  O-O {[%clk 0:02:45]} 9. h4 {[%clk 0:02:59]}  f5 {[%clk 0:02:31]} 10. Nxd5 {[%clk 0:02:55]}  exd5 {[%clk 0:02:28]} 11. a3 {[%clk 0:02:33]}  Be6 {[%clk 0:02:11]} 12. d4 {[%clk 0:02:33]}  cxd4 {[%clk 0:01:52]} 13. Nxd4 {[%clk 0:02:30]}  Nxd4 {[%clk 0:01:52]} 14. Bxd4 {[%clk 0:02:30]}  Bf6 {[%clk 0:01:48]} 15. Qb2 {[%clk 0:02:29]}  Rc8 {[%clk 0:01:24]} 16. Bd3 {[%clk 0:02:27]}  Qe7 {[%clk 0:01:14]} 17. g3 {[%clk 0:02:22]}  a6 {[%clk 0:00:50]} 18. O-O {[%clk 0:02:22]}  Bxd4 {[%clk 0:00:26]} 19. Qxd4 {[%clk 0:02:21]}  Qf6 {[%clk 0:00:27]} 20. Qxf6 {[%clk 0:02:18]}  Rxf6 {[%clk 0:00:28]} 21. Rac1 {[%clk 0:02:03]}  Rff8 {[%clk 0:00:28]} 22. b4 {[%clk 0:02:02]}  Kf7 {[%clk 0:00:27]} 23. Kg2 {[%clk 0:02:02]}  Ke7 {[%clk 0:00:27]} 24. Kf3 {[%clk 0:02:02]}  g6 {[%clk 0:00:24]} 25. Kf4 {[%clk 0:02:02]}  Kf6 {[%clk 0:00:25]} 26. a4 {[%clk 0:01:48]}  h6 {[%clk 0:00:22]} 27. a5 {[%clk 0:01:47]}  g5+ {[%clk 0:00:23]} 28. hxg5+ {[%clk 0:01:48]}  hxg5+ {[%clk 0:00:24]} 29. Kf3 {[%clk 0:01:48]}  Ke5 {[%clk 0:00:18]} 30. Rh1 {[%clk 0:01:46]}  d4 {[%clk 0:00:16]} 31. exd4+ {[%clk 0:01:39]}  Kxd4 {[%clk 0:00:16]} 32. Rcd1 {[%clk 0:01:40]}  Bd5+ {[%clk 0:00:15]} 33. Be4+ {[%clk 0:01:40]}  Kc3 {[%clk 0:00:00]} 34. Bxd5 {[%clk 0:01:39]} 1-0


[Site "https://www.chess.com"]

[Event "Titled Tuesday Blitz May 23 Early 2023"]
[White "Degenbaev, Aziz"]
[Black "Pranav Anand"]
[WhiteFideId "13802640"]
[BlackFideId "46626786"]
[WhiteElo "2152"]
[BlackElo "2389"]
[Result "0-1"]
[Round "06"]
[TimeControl "180+2"]
[Date "2023.05.23"]
[WhiteClock "0:00:01"]
[BlackClock "0:01:15"]

1. e4 {[%clk 0:03:00]}  b6 {[%clk 0:02:59]} 2. d4 {[%clk 0:03:00]}  Bb7 {[%clk 0:03:00]} 3. Nc3 {[%clk 0:03:00]}  e6 {[%clk 0:03:00]} 4. Nf3 {[%clk 0:02:50]}  Bb4 {[%clk 0:02:59]} 5. Bd3 {[%clk 0:02:50]}  Nf6 {[%clk 0:02:58]} 6. Qe2 {[%clk 0:02:49]}  d5 {[%clk 0:02:56]} 7. e5 {[%clk 0:02:40]}  Ne4 {[%clk 0:02:52]} 8. O-O {[%clk 0:02:30]}  Nxc3 {[%clk 0:02:41]} 9. bxc3 {[%clk 0:02:30]}  Bxc3 {[%clk 0:02:42]} 10. Rb1 {[%clk 0:02:31]}  h6 {[%clk 0:02:35]} 11. Rb3 {[%clk 0:02:30]}  Ba5 {[%clk 0:02:33]} 12. Ba3 {[%clk 0:02:28]}  Nd7 {[%clk 0:02:23]} 13. Qe3 {[%clk 0:02:25]}  Rb8 {[%clk 0:02:18]} 14. Rfb1 {[%clk 0:02:23]}  Bc6 {[%clk 0:02:15]} 15. Bb5 {[%clk 0:01:52]}  Bxb5 {[%clk 0:02:13]} 16. Rxb5 {[%clk 0:01:53]}  Rc8 {[%clk 0:01:47]} 17. Rxd5 {[%clk 0:00:38]}  exd5 {[%clk 0:01:36]} 18. e6 {[%clk 0:00:38]}  Nf6 {[%clk 0:01:37]} 19. Ne5 {[%clk 0:00:28]}  fxe6 {[%clk 0:01:24]} 20. Qd3 {[%clk 0:00:15]}  Ne4 {[%clk 0:01:23]} 21. f3 {[%clk 0:00:15]}  c5 {[%clk 0:01:19]} 22. fxe4 {[%clk 0:00:15]}  O-O {[%clk 0:01:20]} 23. dxc5 {[%clk 0:00:13]}  bxc5 {[%clk 0:01:18]} 24. Rb7 {[%clk 0:00:14]}  dxe4 {[%clk 0:01:16]} 25. Qxd8 {[%clk 0:00:05]}  Rcxd8 {[%clk 0:01:17]} 26. h3 {[%clk 0:00:04]}  e3 {[%clk 0:01:16]} 27. Bxc5 {[%clk 0:00:01]}  e2 {[%clk 0:01:15]} 28. Nd3 {[%clk 0:00:01]}  Rxd3 {[%clk 0:01:15]} 0-1


[Site "https://www.chess.com"]

[Event "Titled Tuesday Blitz May 23 Early 2023"]
[White "Manukyan, Artyom"]
[Black "Jaracz, Pawel"]
[WhiteFideId "13305786"]
[BlackFideId "1102222"]
[WhiteElo "2078"]
[BlackElo "2438"]
[Result "1-0"]
[Round "06"]
[TimeControl "180+2"]
[Date "2023.05.23"]
[WhiteClock "0:00:13"]
[BlackClock "0:00:10"]

1. e4 {[%clk 0:03:00]}  e5 {[%clk 0:02:56]} 2. Nf3 {[%clk 0:03:00]}  Nc6 {[%clk 0:02:56]} 3. Bb5 {[%clk 0:03:00]}  a6 {[%clk 0:02:56]} 4. Bxc6 {[%clk 0:03:00]}  dxc6 {[%clk 0:02:56]} 5. O-O {[%clk 0:03:01]}  Qf6 {[%clk 0:02:53]} 6. d4 {[%clk 0:03:00]}  exd4 {[%clk 0:02:53]} 7. Bg5 {[%clk 0:03:01]}  Qg6 {[%clk 0:02:51]} 8. Qxd4 {[%clk 0:03:01]}  Be7 {[%clk 0:02:49]} 9. Bf4 {[%clk 0:02:59]}  c5 {[%clk 0:02:23]} 10. Qa4+ {[%clk 0:02:37]}  b5 {[%clk 0:02:16]} 11. Qb3 {[%clk 0:02:34]}  Be6 {[%clk 0:02:14]} 12. Qe3 {[%clk 0:02:32]}  Nf6 {[%clk 0:01:47]} 13. Nc3 {[%clk 0:02:15]}  b4 {[%clk 0:01:42]} 14. Nd5 {[%clk 0:02:15]}  Bxd5 {[%clk 0:01:42]} 15. exd5 {[%clk 0:02:13]}  Nxd5 {[%clk 0:01:42]} 16. Qe5 {[%clk 0:02:11]}  Nxf4 {[%clk 0:01:38]} 17. Qxf4 {[%clk 0:02:12]}  O-O {[%clk 0:01:17]} 18. Qc4 {[%clk 0:02:11]}  Bd6 {[%clk 0:01:10]} 19. a3 {[%clk 0:02:03]}  Rfb8 {[%clk 0:01:07]} 20. Rfe1 {[%clk 0:01:56]}  Qf6 {[%clk 0:01:05]} 21. axb4 {[%clk 0:01:41]}  Rxb4 {[%clk 0:01:04]} 22. Qd5 {[%clk 0:01:41]}  Rd8 {[%clk 0:00:55]} 23. Rxa6 {[%clk 0:01:36]}  g6 {[%clk 0:00:50]} 24. b3 {[%clk 0:01:23]}  Kg7 {[%clk 0:00:44]} 25. Qg5 {[%clk 0:01:04]}  c4 {[%clk 0:00:29]} 26. Qxf6+ {[%clk 0:01:01]}  Kxf6 {[%clk 0:00:30]} 27. Re4 {[%clk 0:01:00]}  Rdb8 {[%clk 0:00:23]} 28. bxc4 {[%clk 0:00:52]}  Rxc4 {[%clk 0:00:22]} 29. Re1 {[%clk 0:00:21]}  Rxc2 {[%clk 0:00:21]} 30. Nd4 {[%clk 0:00:22]}  Rd2 {[%clk 0:00:20]} 31. Nf3 {[%clk 0:00:20]}  Rd3 {[%clk 0:00:18]} 32. h4 {[%clk 0:00:19]}  h6 {[%clk 0:00:17]} 33. Ne5 {[%clk 0:00:18]}  Rdb3 {[%clk 0:00:15]} 34. Nd7+ {[%clk 0:00:18]}  Kg7 {[%clk 0:00:14]} 35. Nxb8 {[%clk 0:00:18]}  Rb7 {[%clk 0:00:14]} 36. Nc6 {[%clk 0:00:16]}  Rb2 {[%clk 0:00:14]} 37. Ne5 {[%clk 0:00:13]}  Bc5 {[%clk 0:00:10]} 38. Nd3 {[%clk 0:00:13]} 1-0


[Site "https://www.chess.com"]

[Event "Titled Tuesday Blitz May 23 Early 2023"]
[White "Santos Flores, Alberto"]
[Black "Samunenkov, Ihor"]
[WhiteFideId "3601234"]
[BlackFideId "14187086"]
[WhiteElo "2235"]
[BlackElo "2457"]
[Result "0-1"]
[Round "06"]
[TimeControl "180+2"]
[Date "2023.05.23"]
[WhiteClock "0:00:00"]
[BlackClock "0:02:18"]

1. e4 {[%clk 0:03:00]}  c5 {[%clk 0:02:58]} 2. Nf3 {[%clk 0:03:00]}  Nc6 {[%clk 0:02:58]} 3. Nc3 {[%clk 0:03:01]}  g6 {[%clk 0:02:57]} 4. d4 {[%clk 0:03:01]}  cxd4 {[%clk 0:02:58]} 5. Nxd4 {[%clk 0:03:01]}  Bg7 {[%clk 0:02:59]} 6. Be3 {[%clk 0:03:01]}  Nf6 {[%clk 0:02:59]} 7. Bc4 {[%clk 0:03:02]}  O-O {[%clk 0:03:00]} 8. Bb3 {[%clk 0:03:02]}  Re8 {[%clk 0:03:01]} 9. f3 {[%clk 0:02:57]}  d5 {[%clk 0:02:58]} 10. exd5 {[%clk 0:02:54]}  Nb4 {[%clk 0:02:58]} 11. Nde2 {[%clk 0:02:52]}  e6 {[%clk 0:02:58]} 12. dxe6 {[%clk 0:02:48]}  Bxe6 {[%clk 0:02:53]} 13. Qxd8 {[%clk 0:02:32]}  Raxd8 {[%clk 0:02:52]} 14. Bc5 {[%clk 0:01:47]}  Bxb3 {[%clk 0:02:45]} 15. Bxb4 {[%clk 0:01:46]}  Bc4 {[%clk 0:02:30]} 16. Rd1 {[%clk 0:01:25]}  Nd5 {[%clk 0:02:19]} 17. Rxd5 {[%clk 0:00:26]}  Bxd5 {[%clk 0:02:18]} 18. O-O {[%clk 0:00:00]}  Bc4 {[%clk 0:02:18]} 0-1


[Site "https://www.chess.com"]

[Event "Titled Tuesday Blitz May 23 Early 2023"]
[White "Chan, Luis"]
[Black "Zhu, Jiner"]
[WhiteFideId "3216357"]
[BlackFideId "8608059"]
[WhiteElo "2127"]
[BlackElo "2384"]
[Result "0-1"]
[Round "06"]
[TimeControl "180+2"]
[Date "2023.05.23"]
[WhiteClock "0:00:03"]
[BlackClock "0:00:13"]

1. b3 {[%clk 0:03:00]}  e5 {[%clk 0:02:57]} 2. Bb2 {[%clk 0:03:01]}  d6 {[%clk 0:02:57]} 3. e3 {[%clk 0:03:01]}  Nd7 {[%clk 0:02:53]} 4. d4 {[%clk 0:03:01]}  e4 {[%clk 0:02:51]} 5. c4 {[%clk 0:03:00]}  f5 {[%clk 0:02:48]} 6. Ne2 {[%clk 0:02:48]}  Ngf6 {[%clk 0:02:47]} 7. Nbc3 {[%clk 0:02:47]}  g6 {[%clk 0:02:46]} 8. Nf4 {[%clk 0:02:44]}  Qe7 {[%clk 0:02:35]} 9. h4 {[%clk 0:02:39]}  c6 {[%clk 0:02:20]} 10. Be2 {[%clk 0:02:38]}  Bg7 {[%clk 0:02:20]} 11. Qd2 {[%clk 0:02:28]}  Kf7 {[%clk 0:02:18]} 12. f3 {[%clk 0:02:06]}  exf3 {[%clk 0:02:16]} 13. gxf3 {[%clk 0:02:06]}  Re8 {[%clk 0:02:15]} 14. Kf2 {[%clk 0:01:59]}  Bh6 {[%clk 0:01:58]} 15. Rae1 {[%clk 0:01:43]}  Nf8 {[%clk 0:01:55]} 16. d5 {[%clk 0:01:35]}  c5 {[%clk 0:01:49]} 17. Bd3 {[%clk 0:01:32]}  N8d7 {[%clk 0:01:34]} 18. Ne6 {[%clk 0:01:07]}  Ne5 {[%clk 0:01:33]} 19. Ng5+ {[%clk 0:01:07]}  Kf8 {[%clk 0:01:33]} 20. Bc2 {[%clk 0:01:00]}  Nh5 {[%clk 0:01:24]} 21. Rhg1 {[%clk 0:00:54]}  Bg7 {[%clk 0:01:17]} 22. Nxh7+ {[%clk 0:00:47]}  Kg8 {[%clk 0:01:15]} 23. Ng5 {[%clk 0:00:47]}  Bd7 {[%clk 0:01:05]} 24. f4 {[%clk 0:00:38]}  Ng4+ {[%clk 0:01:03]} 25. Rxg4 {[%clk 0:00:38]}  fxg4 {[%clk 0:01:03]} 26. Bxg6 {[%clk 0:00:39]}  Nxf4 {[%clk 0:00:43]} 27. Bf7+ {[%clk 0:00:16]}  Kh8 {[%clk 0:00:37]} 28. Qc2 {[%clk 0:00:14]}  Nh3+ {[%clk 0:00:35]} 29. Nxh3 {[%clk 0:00:12]}  Qxh4+ {[%clk 0:00:24]} 30. Ke2 {[%clk 0:00:10]}  gxh3 {[%clk 0:00:22]} 31. Nd1 {[%clk 0:00:07]}  Bg4+ {[%clk 0:00:20]} 32. Kd2 {[%clk 0:00:07]}  Rf8 {[%clk 0:00:20]} 33. Bg6 {[%clk 0:00:05]}  Rf2+ {[%clk 0:00:17]} 34. Nxf2 {[%clk 0:00:04]}  Qxf2+ {[%clk 0:00:18]} 35. Kd3 {[%clk 0:00:03]}  Qxe1 {[%clk 0:00:14]} 36. Bxg7+ {[%clk 0:00:03]}  Kxg7 {[%clk 0:00:15]} 37. Be4 {[%clk 0:00:02]}  Qd1+ {[%clk 0:00:14]} 38. Qxd1 {[%clk 0:00:02]}  Bxd1 {[%clk 0:00:15]} 39. Kd2 {[%clk 0:00:01]}  Bg4 {[%clk 0:00:14]} 40. Ke1 {[%clk 0:00:02]}  h2 {[%clk 0:00:13]} 41. Bh1 {[%clk 0:00:03]}  Rf8 {[%clk 0:00:13]} 42. e4 {[%clk 0:00:03]}  Bh3 {[%clk 0:00:13]} 0-1


[Site "https://www.chess.com"]

[Event "Titled Tuesday Blitz May 23 Early 2023"]
[White "Jia, Haoxiang"]
[Black "Ordekalog"]
[WhiteFideId "8602999"]
[WhiteElo "2685"]
[BlackElo "2510"]
[Result "1/2-1/2"]
[Round "06"]
[TimeControl "180+2"]
[Date "2023.05.23"]
[WhiteClock "0:00:20"]
[BlackClock "0:00:03"]

1. d4 {[%clk 0:03:00]}  d5 {[%clk 0:02:57]} 2. c4 {[%clk 0:03:00]}  e6 {[%clk 0:02:56]} 3. Nf3 {[%clk 0:03:00]}  c5 {[%clk 0:02:56]} 4. cxd5 {[%clk 0:02:59]}  exd5 {[%clk 0:02:55]} 5. g3 {[%clk 0:03:00]}  Nc6 {[%clk 0:02:55]} 6. Bg2 {[%clk 0:03:00]}  Nf6 {[%clk 0:02:55]} 7. O-O {[%clk 0:03:01]}  Be7 {[%clk 0:02:55]} 8. dxc5 {[%clk 0:03:00]}  Bxc5 {[%clk 0:02:54]} 9. Bg5 {[%clk 0:03:00]}  O-O {[%clk 0:02:54]} 10. Nc3 {[%clk 0:02:59]}  d4 {[%clk 0:02:54]} 11. Bxf6 {[%clk 0:02:59]}  Qxf6 {[%clk 0:02:54]} 12. Nd5 {[%clk 0:02:56]}  Qd8 {[%clk 0:02:53]} 13. Ne1 {[%clk 0:02:46]}  Re8 {[%clk 0:02:48]} 14. Nd3 {[%clk 0:02:45]}  Bb6 {[%clk 0:02:46]} 15. b4 {[%clk 0:02:41]}  Bg4 {[%clk 0:02:45]} 16. Re1 {[%clk 0:02:40]}  Be6 {[%clk 0:02:27]} 17. N3f4 {[%clk 0:02:33]}  Qd6 {[%clk 0:02:21]} 18. b5 {[%clk 0:02:31]}  Ne5 {[%clk 0:02:19]} 19. Nxe6 {[%clk 0:02:11]}  Rxe6 {[%clk 0:02:13]} 20. Nxb6 {[%clk 0:02:11]}  Qxb6 {[%clk 0:02:11]} 21. a4 {[%clk 0:02:12]}  Rd8 {[%clk 0:02:08]} 22. Qb3 {[%clk 0:02:08]}  a5 {[%clk 0:01:58]} 23. Rac1 {[%clk 0:01:49]}  h6 {[%clk 0:01:55]} 24. Red1 {[%clk 0:01:48]}  Rf6 {[%clk 0:01:53]} 25. Qc2 {[%clk 0:01:27]}  d3 {[%clk 0:01:08]} 26. Qc5 {[%clk 0:01:18]}  dxe2 {[%clk 0:00:55]} 27. Rxd8+ {[%clk 0:00:50]}  Qxd8 {[%clk 0:00:55]} 28. Qxe5 {[%clk 0:00:43]}  Qd1+ {[%clk 0:00:54]} 29. Rxd1 {[%clk 0:00:43]}  exd1=Q+ {[%clk 0:00:54]} 30. Bf1 {[%clk 0:00:44]}  Qf3 {[%clk 0:00:40]} 31. Qd4 {[%clk 0:00:35]}  b6 {[%clk 0:00:32]} 32. h4 {[%clk 0:00:33]}  h5 {[%clk 0:00:28]} 33. Bd3 {[%clk 0:00:24]}  g6 {[%clk 0:00:27]} 34. Bc4 {[%clk 0:00:24]}  Kh7 {[%clk 0:00:24]} 35. Bf1 {[%clk 0:00:21]}  Qf5 {[%clk 0:00:20]} 36. Bg2 {[%clk 0:00:20]}  Qe6 {[%clk 0:00:17]} 37. Kh2 {[%clk 0:00:20]}  Qd6 {[%clk 0:00:18]} 38. Qe3 {[%clk 0:00:20]}  Re6 {[%clk 0:00:17]} 39. Qf3 {[%clk 0:00:20]}  Kg7 {[%clk 0:00:17]} 40. Qc3+ {[%clk 0:00:20]}  Qe5 {[%clk 0:00:16]} 41. Qf3 {[%clk 0:00:20]}  Rf6 {[%clk 0:00:16]} 42. Qb7 {[%clk 0:00:19]}  Rxf2 {[%clk 0:00:11]} 43. Qxb6 {[%clk 0:00:19]}  Qb2 {[%clk 0:00:10]} 44. Qc6 {[%clk 0:00:19]}  Rc2 {[%clk 0:00:09]} 45. Qd5 {[%clk 0:00:19]}  Rd2 {[%clk 0:00:09]} 46. Qe4 {[%clk 0:00:19]}  Qd4 {[%clk 0:00:08]} 47. Qc6 {[%clk 0:00:19]}  Qb2 {[%clk 0:00:06]} 48. Qf3 {[%clk 0:00:18]}  Kg8 {[%clk 0:00:02]} 49. Qa8+ {[%clk 0:00:18]}  Kg7 {[%clk 0:00:02]} 50. Qc6 {[%clk 0:00:19]}  Rc2 {[%clk 0:00:02]} 51. Qf3 {[%clk 0:00:19]}  Rf2 {[%clk 0:00:03]} 52. Qe4 {[%clk 0:00:19]}  Re2 {[%clk 0:00:03]} 53. Qa8 {[%clk 0:00:19]}  Rf2 {[%clk 0:00:03]} 54. Qc6 {[%clk 0:00:20]}  Rc2 {[%clk 0:00:03]} 1/2-1/2


[Site "https://www.chess.com"]